bitfinex/quotes_SOLUSD_20251103
["timestamp","ask_amount","ask_price","bid_price","bid_amount"]
[1762130316649,1e-08,188.35,188.34,47.6713289]
[1762130317756,1e-08,188.35,188.34,46.47037425]
[1762130317956,1e-08,188.35,188.34,35.69037425]
[1762130318164,1e-08,188.35,188.34,30.38082769]
[1762130318667,1e-08,188.35,188.34,31.09082769]
[1762130319243,1e-08,188.35,188.34,30.38082769]
[1762130319442,1e-08,188.35,188.34,35.69037425]
[1762130319960,1e-08,188.35,188.34,36.40037425]
[1762130320466,1e-08,188.35,188.34,15.09837425]
[1762130320655,0.67000001,188.35,188.34,15.09837425]
[1762130320968,1e-08,188.35,188.34,35.69037425]
[1762130321763,0.67000001,188.35,188.34,35.69037425]
[1762130321948,0.67000001,188.35,188.34,20.592]
[1762130322253,0.67000001,188.35,188.33,5.30979671]
[1762130322958,1e-08,188.35,188.34,9.78882769]
[1762130323867,1e-08,188.35,188.34,15.09837425]
[1762130324059,1e-08,188.35,188.34,35.69037425]
[1762130328671,0.67000001,188.35,188.34,35.69037425]
[1762130328982,0.67000001,188.35,188.32,10.76]
[1762130329178,0.67000001,188.35,188.33,15.09850904]
[1762130332378,5.97927778,188.35,188.23,5.31264941]
[1762130332873,0.67,188.34,188.24,9.78882769]
[1762130333372,5.30982849,188.33,188.26,9.78882769]
[1762130333750,0.67,188.32,188.26,9.78882769]
[1762130334072,0.67,188.32,188.25,5.31208499]
[1762130335366,5.31039243,188.31,188.25,5.31208499]
[1762130335649,0.67,188.32,188.26,9.78882769]
[1762130335862,0.67,188.31,188.26,9.78882769]
[1762130336962,0.67,188.31,188.27,5.31152068]
[1762130337163,1e-08,188.35,188.28,9.78882769]
[1762130337360,0.67,188.34,188.28,9.78882769]
[1762130338350,0.67,188.34,188.29,5.3109565]
[1762130345461,0.67,188.34,188.31,9.78882769]
[1762130346486,0.67,188.34,188.31,15.09921634]
[1762130347091,5.97960319,188.34,188.27,5.31152068]
[1762130347312,19.2534696,188.34,188.26,9.78882769]
[1762130347515,0.71,188.33,188.24,9.78882769]
[1762130347677,0.71,188.33,188.24,15.10116725]
[1762130348001,0.71,188.33,188.24,9.78882769]
[1762130348378,5.31011045,188.32,188.24,9.78882769]
[1762130348798,0.71,188.31,188.24,9.78882769]
[1762130350400,5.31067445,188.3,188.24,5.31230749]
[1762130350698,0.71,188.31,188.24,5.31230749]
[1762130350885,0.71,188.3,188.24,5.31230749]
[1762130352500,6.02088303,188.3,188.24,9.78882769]
[1762130352896,0.71,188.29,188.24,9.78882769]
[1762130353202,0.71,188.29,188.22,13.28226709]
[1762130353203,0.71,188.29,188.22,9.78882769]
[1762130354507,5.31123858,188.28,188.22,15.10154973]
[1762130354888,0.71,188.27,188.2,25.90523396]
[1762130355204,0.71,188.27,188.19,9.78882769]
[1762130356308,5.31180282,188.26,188.19,9.78882769]
[1762130357007,0.71,188.25,188.19,9.78882769]
[1762130357704,0.71,188.25,188.18,5.31404743]
[1762130358308,5.31236719,188.24,188.18,5.31404743]
[1762130358808,0.71,188.23,188.18,5.31404743]
[1762130359287,6.02267724,188.23,188.18,5.31404743]
[1762130359678,0.71,188.22,188.18,5.31404743]
[1762130362289,0.71,188.22,188.16,13.28599065]
[1762130362290,0.71,188.22,188.16,18.6006165]
[1762130362784,0.71,188.22,188.16,5.31462585]
[1762130362986,6.02295018,188.22,188.15,0.2]
[1762130363205,15.96636419,188.21,188.15,0.2]
[1762130363407,16.67636419,188.21,188.15,5.51489563]
[1762130363705,0.71,188.2,188.15,5.51489563]
[1762130369111,6.0235877,188.2,188.15,5.51489563]
[1762130369503,0.69,188.19,188.15,5.51489563]
[1762130369693,0.69,188.19,188.15,0.2]
[1762130373503,0.69,188.19,188.15,5.51482263]
[1762130374406,15.10393135,188.21,188.15,5.51482263]
[1762130374716,0.69,188.21,188.16,0.66]
[1762130375092,102.1,188.2,188.16,0.66]
[1762130375288,102.1,188.2,188.16,5.97449911]
[1762130375500,102.79,188.2,188.16,5.97449911]
[1762130376320,0.72,188.19,188.16,5.31449911]
[1762130377013,0.72,188.19,188.15,0.2]
[1762130377922,0.72,188.19,188.15,5.51482987]
[1762130378996,0.72,188.27,188.18,9.78882769]
[1762130379194,0.72,188.27,188.22,9.78882769]
[1762130379405,0.72,188.29,188.24,9.78882769]
[1762130379616,107.41069639,188.3,188.24,9.78882769]
[1762130379815,0.72,188.28,188.24,9.78882769]
[1762130380160,0.72,188.33,188.26,9.78882769]
[1762130380424,0.72,188.32,188.25,9.78882769]
[1762130380606,0.72,188.32,188.26,0.68]
[1762130381504,0.72,188.32,188.28,9.78882769]
[1762130381695,0.72,188.34,188.28,9.78882769]
[1762130382094,1e-08,188.35,188.3,9.78882769]
[1762130382311,0.72000001,188.35,188.3,10.46882769]
[1762130382508,0.72,188.34,188.3,10.46882769]
[1762130382933,1e-08,188.35,188.3,10.46882769]
[1762130383235,0.72000001,188.35,188.3,10.46882769]
[1762130384533,1e-08,188.35,188.32,9.78882769]
[1762130386339,1e-08,188.35,188.34,9.78882769]
[1762130387031,1e-08,188.35,188.34,10.48882769]
[1762130387212,1e-08,188.35,188.34,11.01978234]
[1762130388337,1e-08,188.35,188.34,16.3293289]
[1762130390435,0.66,188.47,188.37,30.38082769]
[1762130390635,0.1,188.48,188.41,9.78882769]
[1762130390937,0.66,188.46,188.41,9.78882769]
[1762130391125,0.1,188.48,188.41,9.78882769]
[1762130391436,0.1,188.48,188.41,10.48882769]
[1762130391736,0.66,188.47,188.41,10.48882769]
[1762130391921,0.66,188.47,188.43,9.78882769]
[1762130392119,0.76,188.48,188.43,9.78882769]
[1762130392324,0.66,188.47,188.43,15.09568499]
[1762130393055,0.66,188.47,188.38,5.30828611]
[1762130393350,0.66,188.47,188.35,5.30909517]
[1762130393546,5.30828611,188.46,188.34,5.30954221]
[1762130393714,5.30828611,188.46,188.34,26.60154221]
[1762130393914,0.66,188.45,188.35,10.48882769]
[1762130394341,5.30672893,188.44,188.36,5.30898279]
[1762130394635,0.66,188.45,188.36,6.00898279]
[1762130394846,5.30828611,188.46,188.36,6.00898279]
[1762130394847,0.66,188.44,188.37,0.7]
[1762130395428,0.66,188.44,188.36,18.58143978]
[1762130396443,5.96686354,188.44,188.36,18.58143978]
[1762130396827,0.66,188.43,188.36,19.28143978]
[1762130398044,0.66,188.43,188.37,0.7]
[1762130399018,0.66,188.43,188.37,10.48882769]
[1762130400611,0.66,188.43,188.39,9.78882769]
[1762130401239,5.96701674,188.43,188.34,20.592]
[1762130401455,5.96701674,188.43,188.35,9.78882769]
[1762130401620,0.66,188.42,188.35,9.78882769]
[1762130401939,0.66,188.42,188.37,9.78882769]
[1762130402330,0.66,188.42,188.37,0.7]
[1762130402525,0.66,188.42,188.37,9.78882769]
[1762130402739,0.66,188.42,188.37,10.48882769]
[1762130403119,0.66,188.42,188.37,9.78882769]
[1762130404054,5.96742366,188.42,188.35,9.78882769]
[1762130404240,0.66,188.41,188.35,9.78882769]
[1762130404750,0.66,188.41,188.37,9.78882769]
[1762130406647,0.66,188.41,188.37,15.09752023]
[1762130407726,0.68,188.44,188.39,9.78882769]
[1762130408132,0.68,188.43,188.38,9.78882769]
[1762130408848,0.68,188.43,188.39,5.30813737]
[1762130410745,102.78,188.45,188.39,6.02813737]
[1762130411131,0.68,188.45,188.4,9.78882769]
[1762130411330,0.68,188.47,188.4,10.50882769]
[1762130411658,0.68,188.47,188.42,9.78882769]
[1762130412257,0.68,188.47,188.42,0.72]
[1762130412936,0.1,188.48,188.44,9.78882769]
[1762130413334,0.1,188.48,188.44,10.50882769]
[1762130413951,0.1,188.48,188.46,9.78882769]
[1762130415253,0.1,188.48,188.47,15.09471191]
[1762130417040,0.1,188.48,188.47,15.81471191]
[1762130417232,0.1,188.48,188.47,36.40671191]
[1762130421741,0.1,188.48,188.47,35.68671191]
[1762130424152,0.1,188.48,188.47,9.78882769]
[1762130424153,0.78,188.48,188.47,9.78882769]
[1762130424868,6.08561329,188.48,188.4,9.78882769]
[1762130425044,6.08561329,188.48,188.41,20.592]
[1762130425247,0.67,188.47,188.41,20.592]
[1762130425472,0.67,188.47,188.4,9.78882769]
[1762130426268,5.30616576,188.46,188.4,9.78882769]
[1762130426643,0.67,188.45,188.4,9.78882769]
[1762130426841,0.67,188.45,188.4,5.30784325]
[1762130427470,0.67,188.45,188.38,15.09697033]
[1762130427657,0.67,188.45,188.38,15.0971838]
[1762130428055,5.97652732,188.45,188.38,15.0971838]
[1762130428252,0.67,188.45,188.38,15.0971838]
[1762130428455,0.67,188.44,188.38,15.0971838]
[1762130429773,5.97682946,188.44,188.37,9.78882769]
[1762130430161,0.67,188.43,188.37,9.78882769]
[1762130430751,0.67,188.43,188.38,5.30841915]
[1762130433775,0.67,188.43,188.37,9.78882769]
[1762130433776,5.9771171,188.43,188.37,9.78882769]
[1762130434275,0.67,188.42,188.37,9.78882769]
[1762130434479,0.67,188.42,188.35,35.68981867]
[1762130437656,0.67,188.42,188.35,49.66298033]
[1762130437858,0.67,188.42,188.37,9.78882769]
[1762130439991,0.67,188.42,188.38,5.30841915]
[1762130444299,0.67,188.42,188.36,15.09754655]
[1762130445379,5.97729518,188.42,188.35,9.78882769]
[1762130445579,0.71,188.41,188.35,9.78882769]
[1762130445789,5.30785562,188.4,188.35,9.78882769]
[1762130446186,0.71,188.39,188.35,9.78882769]
[1762130446384,0.71,188.39,188.34,9.78882769]
[1762130446705,0.71,188.39,188.32,5.31006966]
[1762130446892,0.71,188.39,188.31,9.78882769]
[1762130447078,0.71,188.39,188.3,9.78882769]
[1762130447267,11.46,188.38,188.3,9.78882769]
[1762130447790,5.30898279,188.36,188.3,9.78882769]
[1762130448179,0.71,188.35,188.3,9.78882769]
[1762130450008,5.30954656,188.34,188.28,9.78882769]
[1762130450191,18.58341297,188.34,188.25,9.78882769]
[1762130450383,0.71,188.33,188.25,9.78882769]
[1762130451172,5.31011045,188.32,188.25,15.10091268]
[1762130451495,0.71,188.31,188.25,15.10091268]
[1762130451803,0.71,188.31,188.24,9.78882769]
[1762130453399,18.58736058,188.3,188.2,15.10232397]
[1762130453572,18.58736058,188.3,188.2,9.78882769]
[1762130453777,102.81,188.29,188.18,0.9]
[1762130453978,0.71,188.28,188.18,0.9]
[1762130454372,0.71,188.28,188.19,35.69457352]
[1762130454576,5.31152068,188.27,188.19,35.69457352]
[1762130455101,0.71,188.26,188.19,35.69457352]
[1762130456272,0.71,188.26,188.2,0.7]
[1762130456796,0.71,188.26,188.21,5.31321396]
[1762130457094,0.71,188.26,188.22,10.48882769]
[1762130457591,0.71,188.26,188.22,9.78882769]
[1762130458393,0.71,188.26,188.18,0.9]
[1762130458394,6.02181381,188.26,188.18,0.2]
[1762130458789,0.71,188.25,188.18,0.2]
[1762130459591,0.71,188.25,188.18,9.98882769]
[1762130459900,0.71,188.25,188.18,10.68882769]
[1762130460208,102.81,188.25,188.18,10.68882769]
[1762130460375,102.81,188.25,188.2,9.78882769]
[1762130460700,0.71,188.24,188.2,15.10229684]
[1762130461976,102.1,188.25,188.2,15.10229684]
[1762130462295,102.1,188.25,188.22,9.78882769]
[1762130462773,102.1,188.31,188.24,9.78882769]
[1762130462978,102.81,188.31,188.26,9.78882769]
[1762130463374,0.71,188.3,188.24,9.78882769]
[1762130463775,0.71,188.3,188.26,9.78882769]
[1762130464598,102.1,188.31,188.26,10.48882769]
[1762130464801,102.81,188.31,188.26,10.48882769]
[1762130465182,5.30957046,188.34,188.26,10.48882769]
[1762130465183,0.71,188.34,188.27,0.7]
[1762130465784,0.71,188.34,188.28,28.37816272]
[1762130467278,0.71,188.34,188.28,15.10006627]
[1762130468502,0.71,188.34,188.28,28.37816272]
[1762130468717,0.71,188.34,188.28,29.03816272]
[1762130470700,0.71,188.34,188.28,15.76006627]
[1762130470904,0.71,188.34,188.28,15.10006627]
[1762130471494,6.01959644,188.34,188.28,15.10006627]
[1762130471899,0.71,188.34,188.28,15.10006627]
[1762130472099,0.71,188.34,188.28,29.03816272]
[1762130472404,0.71,188.34,188.28,28.37816272]
[1762130473887,0.71,188.34,188.28,29.03816272]
[1762130474285,0.71,188.34,188.28,28.37816272]
[1762130474703,0.71,188.34,188.28,29.03816272]
[1762130475228,0.71,188.34,188.3,9.78882769]
[1762130476522,0.71,188.34,188.3,15.09927936]
[1762130479814,0.71,188.34,188.3,9.78882769]
[1762130480516,6.01963049,188.34,188.26,15.10063051]
[1762130480689,102.1,188.33,188.26,15.10063051]
[1762130480892,102.81,188.33,188.26,15.10063051]
[1762130481110,0.71,188.32,188.26,15.10063051]
[1762130481809,0.71,188.32,188.21,15.10204165]
[1762130482017,102.1,188.31,188.21,15.10204165]
[1762130482418,5.3109565,188.29,188.21,15.10204165]
[1762130482917,0.71,188.28,188.21,15.10204165]
[1762130483295,0.71,188.28,188.19,9.78882769]
[1762130483505,0.71,188.28,188.19,15.10258625]
[1762130485108,5.31152068,188.27,188.19,15.10258625]
[1762130485624,0.69,188.26,188.19,15.10258625]
[1762130485819,0.69,188.26,188.19,15.81258625]
[1762130486720,0.69,188.26,188.21,9.78882769]
[1762130487323,6.00192889,188.26,188.19,15.10258625]
[1762130487493,6.00192889,188.26,188.19,5.31375856]
[1762130487494,102.1,188.25,188.19,5.31375856]
[1762130487694,102.1,188.24,188.19,5.31375856]
[1762130487918,102.1,188.23,188.19,5.31375856]
[1762130488117,102.1,188.23,188.18,9.98882769]
[1762130488118,102.79,188.23,188.18,0.2]
[1762130488399,0.69,188.22,188.18,0.2]
[1762130488602,5.31321396,188.21,188.18,0.2]
[1762130489104,0.69,188.2,188.18,0.2]
[1762130489429,2.81918851,188.2,188.18,0.2]
[1762130489798,0.69,188.19,188.18,0.2]
[1762130490415,0.69,188.21,188.18,0.2]
[1762130490620,2.81896186,188.21,188.18,0.2]
[1762130491106,0.69,188.2,188.18,0.2]
[1762130492816,6.22824331,188.3,188.18,0.2]
[1762130492817,5.31190527,188.26,188.18,5.51395556]
[1762130493020,5.31434136,188.24,188.18,0.2]
[1762130493426,0.69,188.23,188.18,0.2]
[1762130494107,9.98882769,188.22,188.18,0.2]
[1762130494321,102.1,188.21,188.18,0.2]
[1762130494498,102.79,188.21,188.18,0.2]
[1762130494702,0.69,188.2,188.18,0.2]
[1762130503837,6.00350264,188.2,188.18,0.2]
[1762130504209,0.69,188.19,188.18,0.2]
[1762130507835,6.00377862,188.19,188.18,0.2]
[1762130508034,20.592,188.17,188.16,0.2]
[1762130508415,21.282,188.17,188.16,0.2]
[1762130508736,31.03135966,188.17,188.16,0.2]
[1762130510413,36.34570307,188.17,188.16,0.2]
[1762130511229,41.17592061,188.17,188.16,0.2]
[1762130511615,53.77177914,188.17,188.11,9.64935966]
[1762130511817,2.41510877,188.12,188.11,9.64935966]
[1762130512340,3.10510877,188.12,188.11,9.64935966]
[1762130513012,12.75446843,188.12,188.11,9.64935966]
[1762130513637,0.69,188.15,188.11,9.64935966]
[1762130513826,102.1,188.16,188.12,0.66]
[1762130514029,5.31293167,188.22,188.14,12.20393646]
[1762130514336,2.41510877,188.2,188.15,0.66]
[1762130514727,3.10510877,188.19,188.15,0.66]
[1762130515032,3.10510877,188.19,188.14,5.3149504]
[1762130515264,3.10510877,188.19,188.14,5.9749504]
[1762130516726,3.10510877,188.19,188.15,5.97489478]
[1762130517637,3.10510877,188.19,188.15,0.66]
[1762130518027,2.41510877,188.18,188.15,0.66]
[1762130518834,104.51510877,188.18,188.15,0.66]
[1762130520019,5.92928562,188.37,188.18,9.78882769]
[1762130520020,2.41510877,188.28,188.18,9.78882769]
[1762130520225,2.41510877,188.28,188.22,2.41510877]
[1762130520441,2.41510877,188.27,188.2,9.78882769]
[1762130520637,3.10510877,188.27,188.22,7.72801187]
[1762130520836,3.10510877,188.27,188.22,5.3129031]
[1762130521128,0.69,188.27,188.22,7.72801187]
[1762130521336,2.41510877,188.28,188.23,0.66]
[1762130521536,21.282,188.29,188.23,0.66]
[1762130521744,2.41510877,188.28,188.23,0.66]
[1762130522255,3.10510877,188.28,188.23,0.66]
[1762130522420,3.10510877,188.28,188.23,5.9724314]
[1762130522826,3.10510877,188.28,188.23,0.66]
[1762130523050,3.10510877,188.27,188.22,9.78882769]
[1762130523349,2.41510877,188.25,188.21,9.78882769]
[1762130523641,2.41510877,188.25,188.2,9.78882769]
[1762130523832,2.41510877,188.25,188.2,10.44882769]
[1762130524032,2.41510877,188.25,188.21,0.66]
[1762130524341,0.69,188.26,188.21,0.66]
[1762130524342,3.10510877,188.26,188.21,5.97293401]
[1762130525043,2.41510877,188.28,188.22,3.07510877]
[1762130525255,2.41510877,188.28,188.22,2.41510877]
[1762130525454,2.41510877,188.28,188.22,3.07510877]
[1762130525646,3.10510877,188.28,188.22,3.07510877]
[1762130526326,3.10510877,188.28,188.22,8.38778954]
[1762130526951,8.41636711,188.28,188.22,8.38778954]
[1762130527548,104.51510877,188.27,188.22,5.97268077]
[1762130527929,105.20510877,188.27,188.22,5.97268077]
[1762130529432,105.20510877,188.27,188.23,0.66]
[1762130529939,15.69051871,188.32,188.23,0.66]
[1762130529940,0.69,188.34,188.27,9.78882769]
[1762130530143,2.41510877,188.33,188.27,12.20393646]
[1762130530358,2.41510877,188.33,188.27,12.86393646]
[1762130530733,3.10510877,188.33,188.27,12.86393646]
[1762130530934,6.00268077,188.36,188.29,12.20393646]
[1762130531138,6.00268077,188.36,188.31,2.41510877]
[1762130531139,3.10510877,188.36,188.31,2.41510877]
[1762130531438,23.69710877,188.36,188.31,3.07510877]
[1762130531827,0.69,188.35,188.31,0.66]
[1762130532251,3.10510877,188.35,188.31,0.66]
[1762130532643,0.69,188.39,188.33,23.00710877]
[1762130532844,2.41510877,188.39,188.34,0.66]
[1762130533042,2.41510877,188.39,188.35,5.30926466]
[1762130533350,2.41510877,188.39,188.35,5.96926466]
[1762130533536,2.41510877,188.4,188.35,7.72437343]
[1762130533736,2.41510877,188.41,188.36,0.66]
[1762130534160,3.10510877,188.41,188.36,0.66]
[1762130534656,3.10510877,188.41,188.36,5.96874054]
[1762130535548,3.10510877,188.41,188.35,2.41510877]
[1762130535549,3.10510877,188.4,188.35,2.41510877]
[1762130535750,2.41510877,188.36,188.28,2.41510877]
[1762130536057,2.41510877,188.34,188.3,9.78882769]
[1762130536436,2.41510877,188.34,188.3,10.44882769]
[1762130536632,2.41510877,188.34,188.3,15.0994897]
[1762130536838,2.41510877,188.34,188.31,0.66]
[1762130537045,2.41510877,188.36,188.31,0.66]
[1762130538461,2.41510877,188.35,188.31,0.66]
[1762130538661,0.69,188.36,188.31,0.66]
[1762130538662,2.41510877,188.34,188.31,0.66]
[1762130538846,5.99904363,188.36,188.31,5.97038414]
[1762130539043,2.41510877,188.34,188.31,5.97038414]
[1762130539248,2.41510877,188.38,188.33,9.78882769]
[1762130539449,104.51510877,188.39,188.33,12.20393646]
[1762130539746,2.41510877,188.38,188.34,0.66]
[1762130540157,3.10510877,188.38,188.33,9.78882769]
[1762130540361,2.41510877,188.38,188.34,0.66]
[1762130540943,2.41510877,188.38,188.34,5.96931522]
[1762130541148,104.51510877,188.39,188.35,9.78882769]
[1762130541458,105.20510877,188.39,188.35,9.78882769]
[1762130541662,2.41510877,188.39,188.35,10.44882769]
[1762130541877,3.10510877,188.39,188.35,10.44882769]
[1762130542168,2.41510877,188.41,188.38,9.78882769]
[1762130542635,2.41510877,188.41,188.36,3.07510877]
[1762130542636,2.41510877,188.41,188.37,9.78882769]
[1762130542838,2.41510877,188.41,188.37,10.44882769]
[1762130543235,5.99715685,188.43,188.37,10.44882769]
[1762130543458,2.41510877,188.41,188.37,10.44882769]
[1762130543661,2.41510877,188.42,188.37,18.17262992]
[1762130544043,3.10510877,188.43,188.38,0.66]
[1762130544443,0.69,188.42,188.37,17.51262992]
[1762130544950,3.10510877,188.42,188.37,18.17262992]
[1762130545160,2.41510877,188.41,188.37,10.44882769]
[1762130545341,2.41510877,188.41,188.37,15.75744026]
[1762130545955,6.02682283,188.44,188.38,3.07510877]
[1762130546158,2.41510877,188.43,188.38,3.07510877]
[1762130546674,3.13510877,188.43,188.38,3.07510877]
[1762130547045,0.72,188.43,188.38,8.38332598]
[1762130547247,3.13510877,188.43,188.38,8.38332598]
[1762130548640,5.30702655,188.43,188.35,9.78882769]
[1762130548840,2.41510877,188.37,188.34,5.30954172]
[1762130549068,2.41510877,188.36,188.34,9.78882769]
[1762130549452,2.41510877,188.36,188.33,9.78882769]
[1762130549659,2.41510877,188.35,188.33,9.78882769]
[1762130549864,2.41510877,188.35,188.32,15.09887737]
[1762130550042,2.41510877,188.36,188.32,15.75887737]
[1762130550569,2.41510877,188.36,188.32,9.78882769]
[1762130550570,2.41510877,188.35,188.32,9.78882769]
[1762130550768,2.41510877,188.34,188.3,5.97066572]
[1762130551065,2.41510877,188.34,188.31,10.44882769]
[1762130551972,3.13510877,188.35,188.31,15.75916841]
[1762130552359,2.41510877,188.38,188.33,12.20393646]
[1762130552559,2.41510877,188.35,188.3,12.86393646]
[1762130552742,2.41510877,188.34,188.3,10.44882769]
[1762130554354,1.54185871,188.34,188.3,15.7594891]
[1762130555854,6.02899859,188.36,188.31,0.67]
[1762130556175,1.54185871,188.34,188.31,0.67]
[1762130556942,0.7,188.35,188.31,0.67]
[1762130557145,1.54185871,188.34,188.31,5.98032079]
[1762130558161,2.24185871,188.34,188.3,15.09946018]
[1762130558471,2.24185871,188.34,188.3,15.76946018]
[1762130559665,2.24185871,188.34,188.3,15.09946018]
[1762130560051,1.54185871,188.34,188.3,15.09946018]
[1762130560280,1.54185871,188.34,188.31,0.67]
[1762130560460,1.54185871,188.34,188.31,5.98031641]
[1762130561745,1.54185871,188.34,188.32,0.67]
[1762130561963,1.54185871,188.35,188.32,0.67]
[1762130562162,1.54185871,188.36,188.32,0.67]
[1762130562369,1.54185871,188.37,188.33,9.78882769]
[1762130562747,1.54185871,188.37,188.34,0.67]
[1762130563776,1.54185871,188.37,188.33,15.09840416]
[1762130563951,1.54185871,188.36,188.33,15.09840416]
[1762130564363,1.54185871,188.37,188.34,0.67]
[1762130565671,1.54185871,188.37,188.34,5.97951639]
[1762130565861,1.54185871,188.38,188.34,5.97951639]
[1762130566175,2.24185871,188.38,188.34,5.97951639]
[1762130567076,103.64185871,188.39,188.35,9.78882769]
[1762130567254,103.64185871,188.39,188.35,10.45882769]
[1762130567456,103.64185871,188.39,188.36,0.67]
[1762130567656,102.1,188.39,188.36,5.97887066]
[1762130567872,103.64185871,188.39,188.36,5.97887066]
[1762130568279,1.54185871,188.41,188.37,10.45882769]
[1762130569368,1.54185871,188.41,188.37,15.76725698]
[1762130569569,2.24185871,188.41,188.37,15.76725698]
[1762130570363,1.54185871,188.4,188.37,15.76725698]
[1762130570770,2.24185871,188.41,188.37,15.76725698]
[1762130571772,1.54185871,188.41,188.37,15.76725698]
[1762130572166,1.54185871,188.4,188.37,15.76725698]
[1762130573293,1.54185871,188.4,188.37,9.78882769]
[1762130573467,1.54185871,188.38,188.34,9.78882769]
[1762130573664,1.54185871,188.37,188.34,9.78882769]
[1762130573872,1.54185871,188.37,188.35,0.67]
[1762130574367,1.54185871,188.38,188.35,5.9791083]
[1762130576281,1.54185871,188.39,188.35,5.3091083]
[1762130576475,1.54185871,188.39,188.36,0.67]
[1762130576872,102.1,188.42,188.37,9.78882769]
[1762130577200,1.54185871,188.41,188.38,0.67]
[1762130577695,103.64185871,188.42,188.38,0.67]
[1762130578293,103.64185871,188.42,188.38,5.97820311]
[1762130578683,0.7,188.46,188.41,9.78882769]
[1762130579001,1.54185871,188.45,188.39,10.45882769]
[1762130579203,1.54185871,188.43,188.39,9.78882769]
[1762130579404,1.54185871,188.44,188.39,10.45882769]
[1762130579601,1.54185871,188.43,188.39,10.45882769]
[1762130580317,2.24185871,188.44,188.41,5.3075739]
[1762130580803,2.24185871,188.44,188.4,5.97783709]
[1762130582377,1.54185871,188.44,188.41,15.09626096]
[1762130582590,1.54185871,188.44,188.41,9.78882769]
[1762130582801,0.7,188.43,188.41,9.78882769]
[1762130583006,1.54185871,188.42,188.36,5.30898279]
[1762130583203,0.7,188.43,188.35,9.78882769]
[1762130583204,1.54185871,188.38,188.35,9.78882769]
[1762130583374,0.7,188.42,188.35,15.09804372]
[1762130583579,0.7,188.43,188.35,15.09804372]
[1762130583775,1.54185871,188.4,188.35,15.76804372]
[1762130584090,1.54185871,188.39,188.35,15.76804372]
[1762130585273,1.54185871,188.44,188.39,9.78882769]
[1762130585679,1.54185871,188.44,188.39,10.45882769]
[1762130585680,2.24185871,188.44,188.39,10.45882769]
[1762130585897,0.67,188.43,188.39,10.45882769]
[1762130586397,2.21185871,188.43,188.39,15.76692021]
[1762130586601,1.54185871,188.42,188.39,15.09692021]
[1762130587388,1.54185871,188.4,188.34,0.72]
[1762130587699,0.67,188.41,188.37,9.78882769]
[1762130587700,1.54185871,188.39,188.37,9.78882769]
[1762130587891,2.21185871,188.41,188.37,9.78882769]
[1762130588099,2.21185871,188.41,188.37,10.50882769]
[1762130588488,2.21185871,188.41,188.37,15.09726723]
[1762130588806,0.67,188.41,188.37,15.09726723]
[1762130588996,2.21185871,188.41,188.37,15.09726723]
[1762130589390,2.21185871,188.41,188.37,15.81726723]
[1762130589708,0.67,188.41,188.37,15.81726723]
[1762130589898,2.21185871,188.41,188.37,15.09726723]
[1762130590688,2.21185871,188.41,188.37,15.81726723]
[1762130591007,1.54185871,188.42,188.37,15.81726723]
[1762130591383,0.67,188.41,188.37,15.81726723]
[1762130592301,1.54185871,188.42,188.37,15.81726723]
[1762130592495,2.21185871,188.42,188.38,0.72]
[1762130592678,2.21185871,188.42,188.39,9.78882769]
[1762130592882,1.54185871,188.43,188.39,9.78882769]
[1762130593207,0.67,188.42,188.38,9.78882769]
[1762130593502,2.21185871,188.42,188.38,9.78882769]
[1762130594106,2.21185871,188.42,188.38,10.50882769]
[1762130594309,2.21185871,188.42,188.38,9.78882769]
[1762130594614,2.21185871,188.42,188.38,15.09707282]
[1762130595613,2.21185871,188.44,188.38,17.35893153]
[1762130595806,2.21185871,188.43,188.38,17.35893153]
[1762130596010,2.21185871,188.43,188.38,15.81707282]
[1762130596197,0.67,188.42,188.38,15.81707282]
[1762130597013,0.67,188.42,188.38,15.09707282]
[1762130597587,1.54185871,188.41,188.36,20.592]
[1762130597899,1.54185871,188.37,188.3,5.31067445]
[1762130598108,1.54185871,188.32,188.29,5.31094039]
[1762130598289,1.54185871,188.32,188.3,9.78882769]
[1762130598487,0.67,188.31,188.29,9.78882769]
[1762130598905,1.54185871,188.32,188.29,9.78882769]